fUST/lending_fUST_20260115
["ID","MTS","AMOUNT","RATE_DAILY","PERIOD"]
[401945346,1768417844742,-3000.0,0.0001621,2]
[401945348,1768417844752,-3000.0,0.0001622,2]
[401945350,1768417844762,-147433.571221,0.0001622,7]
[401945352,1768417844773,-3000.0,0.0001623,2]
[401945354,1768417844783,-3000.0,0.0001624,2]
[401945357,1768417844794,-3000.0,0.0001625,2]
[401945359,1768417844804,-3000.0,0.0001626,2]
[401945361,1768417844815,-3000.0,0.0001627,2]
[401945363,1768417844824,-247.728982,0.0001627,7]
[401945364,1768417844834,-3000.0,0.0001628,2]
[401945366,1768417844844,-12705.37423421,0.0001628,2]
[401945368,1768417844854,-3000.0,0.0001629,2]
[401945370,1768417844865,-3000.0,0.000163,2]
[401945373,1768417844876,-3000.0,0.0001631,2]
[401945375,1768417844886,-3000.0,0.0001632,2]
[401945377,1768417844895,-3000.0,0.0001633,2]
[401945379,1768417844904,-594.549559,0.0001633,7]
[401945381,1768417844913,-6082.36948946,0.00016338,2]
[401945383,1768417844923,-3000.0,0.0001634,2]
[401945385,1768417844932,-35606.748276,0.0001634,7]
[401945387,1768417844942,-3000.0,0.0001635,2]
[401945389,1768417844951,-3000.0,0.0001636,2]
[401945391,1768417844961,-3000.0,0.0001637,2]
[401945393,1768417844970,-88793.914607,0.0001637,7]
[401945395,1768417844980,-3000.0,0.0001638,2]
[401945396,1768417844991,-3000.0,0.0001639,2]
[401945398,1768417845002,-3000.0,0.000164,2]
[401945400,1768417845012,-3000.0,0.0001641,2]
[401945402,1768417845022,-1486.373895,0.00016412,7]
[401945404,1768417845032,-1800.0,0.00016412,2]
[401945406,1768417845042,-3000.0,0.0001642,2]
[401945408,1768417845053,-3000.0,0.0001643,2]
[401945410,1768417845063,-500.0,0.00016438,2]
[401945412,1768417845073,-500.0,0.00016438,2]
[401945414,1768417845083,-500.0,0.00016438,2]
[401945416,1768417845094,-500.0,0.00016438,2]
[401945418,1768417845104,-378.64219528,0.00016438,2]
[401945420,1768417845113,-500.0,0.00016438,2]
[401945422,1768417845121,-595.30780858,0.00016438,2]
[401945424,1768417845130,-164.26686219,0.00016438,2]
[401945426,1768417845139,-200.0,0.00016438,2]
[401945428,1768417845149,-1044.67516775,0.00016438,2]
[401945430,1768417845159,-3000.0,0.00016438,2]
[401945432,1768417845169,-3000.0,0.00016438,2]
[401945434,1768417845178,-3000.0,0.00016438,2]
[401945436,1768417845187,-3000.0,0.00016438,2]
[401945438,1768417845198,-6581.64417008,0.00016438,2]
[401945440,1768417845219,-260.29560408,0.00016438,2]
[401945442,1768417845228,-3000.0,0.0001644,2]
[401945444,1768417845238,-2000.0,0.00016448,2]
[401945446,1768417845247,-2000.0,0.00016448,2]
[401945448,1768417845257,-2000.0,0.00016448,2]
[401945450,1768417845266,-2000.0,0.00016448,2]
[401945452,1768417845276,-2000.0,0.00016448,2]
[401945454,1768417845285,-2000.0,0.00016448,2]
[401945456,1768417845294,-2000.0,0.00016448,2]
[401945458,1768417845304,-2000.0,0.00016448,2]
[401945460,1768417845317,-2000.0,0.00016448,2]
[401945462,1768417845328,-2000.0,0.00016448,2]
[401945464,1768417845337,-2000.0,0.00016448,2]
[401945466,1768417845347,-2000.0,0.00016448,2]
[401945468,1768417845356,-2000.0,0.00016448,2]
[401945470,1768417845367,-2000.0,0.00016448,2]
[401945472,1768417845378,-2000.0,0.00016448,2]
[401945474,1768417845389,-2000.0,0.00016448,2]
[401945476,1768417845398,-996.312,0.00016448,2]
[401945478,1768417845409,-1000.0,0.00016448,2]
[401945480,1768417845418,-1000.0,0.00016448,2]
[401945482,1768417845427,-1000.0,0.00016448,2]
[401945484,1768417845437,-1000.0,0.00016448,2]
[401945486,1768417845448,-1000.0,0.00016448,2]
[401945488,1768417845457,-475.0,0.00016448,2]
[401945489,1768417845467,-475.0,0.00016448,2]
[401945491,1768417845477,-475.0,0.00016448,2]
[401945493,1768417845487,-475.0,0.00016448,2]
[401945495,1768417845497,-475.0,0.00016448,2]
[401945497,1768417845506,-475.0,0.00016448,2]
[401945499,1768417845516,-475.0,0.00016448,2]
[401945501,1768417845526,-475.0,0.00016448,2]
[401945503,1768417845536,-475.0,0.00016448,2]
[401945505,1768417845546,-475.0,0.00016448,2]
[401945507,1768417845556,-475.0,0.00016448,2]
[401945509,1768417845570,-475.0,0.00016448,2]
[401945511,1768417845579,-475.0,0.00016448,2]
[401945513,1768417845589,-475.0,0.00016448,2]
[401945516,1768417845600,-475.0,0.00016448,2]
[401945518,1768417845610,-475.0,0.00016448,2]
[401945520,1768417845620,-475.0,0.00016448,2]
[401945522,1768417845636,-475.0,0.00016448,2]
[401945524,1768417845646,-475.0,0.00016448,2]
[401945526,1768417845655,-475.0,0.00016448,2]
[401945528,1768417845665,-475.0,0.00016448,2]
[401945530,1768417845674,-475.0,0.00016448,2]
[401945533,1768417845684,-475.0,0.00016448,2]
[401945535,1768417845693,-475.0,0.00016448,2]
[401945537,1768417845703,-475.0,0.00016448,2]
[401945539,1768417845714,-475.0,0.00016448,2]
[401945541,1768417845724,-475.0,0.00016448,2]
[401945543,1768417845734,-475.0,0.00016448,2]
[401945545,1768417845744,-475.0,0.00016448,2]
[401945547,1768417845754,-475.0,0.00016448,2]
[401945549,1768417845764,-475.0,0.00016448,2]
[401945551,1768417845774,-475.0,0.00016448,2]
[401945554,1768417845786,-475.0,0.00016448,2]
[401945556,1768417845795,-475.0,0.00016448,2]
[401945557,1768417845805,-475.0,0.00016448,2]
[401945559,1768417845815,-475.0,0.00016448,2]
[401945561,1768417845825,-475.0,0.00016448,2]
[401945563,1768417845835,-475.0,0.00016448,2]
[401945565,1768417845845,-475.0,0.00016448,2]
[401945567,1768417845855,-475.0,0.00016448,2]
[401945569,1768417845865,-475.0,0.00016448,2]
[401945571,1768417845876,-475.0,0.00016448,2]
[401945573,1768417845886,-475.0,0.00016448,2]
[401945575,1768417845897,-475.0,0.00016448,2]
[401945577,1768417845908,-475.0,0.00016448,2]
[401945579,1768417845917,-475.0,0.00016448,2]
[401945581,1768417845928,-475.0,0.00016448,2]
[401945583,1768417845938,-475.0,0.00016448,2]
[401945585,1768417845948,-475.0,0.00016448,2]
[401945587,1768417845959,-475.0,0.00016448,2]
[401945589,1768417845969,-475.0,0.00016448,2]
[401945591,1768417845980,-475.0,0.00016448,2]
[401945593,1768417845989,-475.0,0.00016448,2]
[401945595,1768417845999,-475.0,0.00016448,2]
[401945598,1768417846010,-475.0,0.00016448,2]
[401945600,1768417846020,-475.0,0.00016448,2]
[401945602,1768417846028,-475.0,0.00016448,2]
[401945604,1768417846037,-475.0,0.00016448,2]
[401945606,1768417846045,-475.0,0.00016448,2]
[401945608,1768417846054,-475.0,0.00016448,2]
[401945610,1768417846062,-475.0,0.00016448,2]
[401945612,1768417846072,-475.0,0.00016448,2]
[401945614,1768417846080,-475.0,0.00016448,2]
[401945616,1768417846089,-475.0,0.00016448,2]
[401945618,1768417846097,-475.0,0.00016448,2]
[401945620,1768417846105,-475.0,0.00016448,2]
[401945621,1768417846113,-390.578,0.00016448,2]
[401945623,1768417846126,-3000.0,0.0001645,2]
[401945625,1768417846135,-2193.793441,0.0001645,7]
[401945627,1768417846143,-3000.0,0.0001646,2]
[401945629,1768417846152,-3000.0,0.0001647,2]
[401945631,1768417846161,-200.0,0.00016473,2]
[401945633,1768417846171,-3000.0,0.0001648,2]
[401945636,1768417846182,-23895.380886,0.0001648,7]
[401945637,1768417846191,-3715.934739,0.0001648,7]
[401945639,1768417846201,-151.0,0.0001648,2]
[401945641,1768417846210,-151.0,0.0001648,2]
[401945643,1768417846219,-151.0,0.0001648,2]
[401945645,1768417846230,-3000.0,0.0001649,2]
[401945647,1768417846239,-3000.0,0.000165,2]
[401945649,1768417846249,-3000.0,0.0001651,2]
[401945651,1768417846260,-329.069017,0.0001651,7]
[401945654,1768417846270,-3000.0,0.0001652,2]
[401945656,1768417846280,-5572.220656,0.0001653,2]
[401945658,1768417846290,-795.987765,0.0001656,2]
[401945660,1768417846300,-795.987765,0.0001656,2]
[401945662,1768417846314,-795.987765,0.0001656,2]
[401945664,1768417846323,-795.987765,0.0001656,2]
[401945666,1768417846335,-3500.0,0.0001656,2]
[401945668,1768417846344,-3500.0,0.0001656,2]
[401945670,1768417846355,-3500.0,0.0001656,2]
[401945672,1768417846364,-3500.0,0.0001656,2]
[401945675,1768417846375,-3500.0,0.0001656,2]
[401945677,1768417846385,-3500.0,0.0001656,2]
[401945680,1768417846394,-691.04126866,0.00016599,2]
[401945682,1768417846404,-18458.53703451,0.00016685,2]
[401945684,1768417846414,-2100.0,0.0001696,2]
[401945686,1768417846424,-270.0,0.00016986,2]
[401945688,1768417846434,-3500.0,0.00016986,2]
[401945690,1768417846444,-2087.94374426,0.00016986,2]
[401945692,1768417846454,-3500.0,0.00016986,2]
[401945694,1768417846465,-3500.0,0.00016986,2]
[401945696,1768417846476,-1613.0,0.00017018,2]
[401945698,1768417846487,-2917.48910491,0.00017108,2]
[401945700,1768417846496,-2892.75982988,0.00017108,2]
[401945702,1768417846508,-4000.0,0.00017108,2]
[401945704,1768417846519,-4000.0,0.00017108,2]
[401945706,1768417846530,-4000.0,0.00017108,2]
[401945707,1768417846541,-4000.0,0.00017108,2]
[401945708,1768417846552,-2400.0,0.0001726,2]
[401945709,1768417846564,-1096.95736168,0.00017331,8]
[401945710,1768417846574,-5000.0,0.00017412,2]
[401945711,1768417846584,-1000.0,0.00017413,2]
[401945712,1768417846595,-492.0,0.00017413,2]
[401945713,1768417846606,-2400.0,0.00017508,2]
[401945714,1768417846619,-174.48080933,0.00017534,2]
[401945715,1768417846629,-4000.0,0.00017534,2]
[401945716,1768417846640,-400.0,0.00017534,2]
[401945717,1768417846652,-4000.0,0.00017534,2]
[401945718,1768417846663,-4000.0,0.00017534,2]
[401945719,1768417846674,-4500.0,0.00017656,2]
[401945720,1768417846684,-4500.0,0.00017656,2]
[401945721,1768417846695,-4500.0,0.00017656,2]
[401945722,1768417846706,-2699.34641428,0.00017656,2]
[401945723,1768417846716,-160.0,0.0001784,2]
[401945724,1768417846726,-1041.66666667,0.0001784,2]
[401945725,1768417846736,-400.30202268,0.00017842,2]
[401945726,1768417846747,-168.28,0.00017903,2]
[401945727,1768417846758,-2700.0,0.00018056,2]
[401945728,1768417846768,-4500.0,0.00018082,2]
[401945729,1768417846780,-4500.0,0.00018082,2]
[401945731,1768417846791,-4500.0,0.00018082,2]
[401945733,1768417846801,-886.2,0.00018119,2]
[401945735,1768417846810,-5000.0,0.00018204,2]
[401945751,1768417846964,-5000.0,0.00018204,2]
[401945753,1768417846975,-5000.0,0.00018204,2]
[401945755,1768417846985,-1096.95736168,0.00018223,9]
[401945757,1768417846995,-12705.37423421,0.00018349,2]
[401945759,1768417847006,-3200.0,0.00018356,2]
[401945762,1768417847016,-155.16,0.000184,2]
[401945763,1768417847027,-160.35823449,0.00018475,2]
[401945765,1768417847038,-771.81232604,0.00018599,2]
[401945767,1768417847049,-3000.0,0.00018604,2]
[401945769,1768417847059,-5000.0,0.0001863,2]
[401945772,1768417847071,-600.0,0.0001863,2]
[401945774,1768417847081,-5000.0,0.0001863,2]
[401945776,1768417847091,-5000.0,0.0001863,2]
[401945778,1768417847102,-61430.654675,0.00018653,7]
[401945780,1768417847112,-2258.0,0.00018708,2]
[401945782,1768417847121,-168.26957802,0.0001871,2]
[401945784,1768417847132,-5500.0,0.00018752,2]
[401945786,1768417847141,-5500.0,0.00018752,2]
[401945788,1768417847151,-3588.14205975,0.00018752,2]
[401945790,1768417847161,-5000.0,0.00018863,2]
[401945792,1768417847171,-303.10001603,0.000189,2]
[401945794,1768417847181,-303.10001603,0.000189,2]
[401945796,1768417847193,-303.10001603,0.00019089,2]
[401945798,1768417847203,-303.10001603,0.00019089,2]
[401945800,1768417847213,-1096.95736168,0.00019116,11]
[401945802,1768417847222,-3300.0,0.00019152,2]
[401945804,1768417847232,-1000.0,0.00019154,2]
[401945806,1768417847242,-791.0,0.00019154,2]
[401945808,1768417847252,-180.72597661,0.00019178,2]
[401945810,1768417847262,-683.587352,0.00019178,2]
[401945812,1768417847272,-683.587352,0.00019178,2]
[401945814,1768417847282,-683.587352,0.00019178,2]
[401945816,1768417847292,-683.587352,0.00019178,2]
[401945818,1768417847302,-5500.0,0.00019178,2]
[401945820,1768417847316,-5500.0,0.00019178,2]
[401945822,1768417847327,-5500.0,0.00019178,2]
[401945824,1768417847336,-35292.34,0.000192,2]
[401945826,1768417847352,-158.69,0.000192,2]
[401945827,1768417847363,-4527.87,0.000192,2]
[401945828,1768417847372,-214.05,0.000192,2]
[401945829,1768417847382,-243.5,0.000192,2]
[401945830,1768417847395,-303.10001603,0.00019278,2]
[401945831,1768417847405,-303.10001603,0.00019278,2]
[401945833,1768417847415,-6000.0,0.000193,2]
[401945835,1768417847424,-4040.44472477,0.000193,2]
[401945836,1768417847434,-886.2,0.00019426,2]
[401945838,1768417847444,-307.61092211,0.00019452,2]
[401945839,1768417847454,-303.10001603,0.00019467,2]
[401945840,1768417847464,-303.10001603,0.00019467,2]
[401945841,1768417847474,-168.28,0.00019607,2]
[401945842,1768417847484,-303.10001603,0.00019656,2]
[401945843,1768417847493,-303.10001603,0.00019656,2]
[401945844,1768417847504,-156.20051056,0.000197,2]
[401945846,1768417847515,-800.0,0.00019726,2]
[401945848,1768417847524,-250.0,0.00019726,2]
[401945849,1768417847535,-250.0,0.00019726,2]
[401945850,1768417847545,-6000.0,0.00019726,2]
[401945851,1768417847556,-6000.0,0.00019726,2]
[401945853,1768417847566,-6000.0,0.00019726,2]
[401945854,1768417847576,-18458.53703451,0.0001975,2]
[401945856,1768417847587,-454.65002405,0.00019845,4]
[401945858,1768417847596,-454.65002405,0.00019845,4]
[401945860,1768417847605,-6500.0,0.00019848,2]
[401945862,1768417847615,-9661.0,0.0002,2]
[401945864,1768417847624,-402.28551192,0.0002,2]
[401945866,1768417847634,-151.55000802,0.0002,2]
[401945868,1768417847643,-300.0,0.0002,2]
[401945869,1768417847653,-2000.0,0.0002,7]
[401945872,1768417847663,-1096.95736168,0.00020008,12]
[401945874,1768417847673,-454.65002405,0.00020034,4]
[401945876,1768417847683,-454.65002405,0.00020034,4]
[401945878,1768417847693,-454.65002405,0.00020223,4]
[401945880,1768417847703,-454.65002405,0.00020223,4]
[401945881,1768417847713,-200.91058964,0.00020274,2]
[401945882,1768417847724,-350.0,0.00020274,2]
[401945883,1768417847733,-6500.0,0.00020274,2]
[401945884,1768417847744,-4402.72600724,0.00020274,2]
[401945885,1768417847754,-3946.58201638,0.00020274,2]
[401945886,1768417847763,-3073.24025849,0.00020396,2]
[401945887,1768417847772,-454.65002405,0.00020412,4]
[401945889,1768417847782,-454.65002405,0.00020412,4]
[401945891,1768417847791,-12705.37423421,0.00020418,2]
[401945893,1768417847801,-2872.691767,0.00020548,2]
[401945895,1768417847811,-3162.0,0.00020566,2]
[401945896,1768417847821,-852.58338341,0.00020599,2]
[401945898,1768417847833,-454.65002405,0.00020601,4]
[401945900,1768417847843,-454.65002405,0.00020601,4]
[401945902,1768417847852,-214.05,0.000207,2]
[401945903,1768417847861,-30000.0,0.0002073,2]
[401945904,1768417847872,-886.2,0.00020733,2]
[401945905,1768417847882,-1000.0,0.00020822,2]
[401945906,1768417847892,-450.0,0.00020822,2]
[401945907,1768417847902,-7000.0,0.00020822,2]
[401945908,1768417847912,-4527.87,0.000209,2]
[401945909,1768417847921,-243.5,0.000209,2]
[401945910,1768417847931,-1096.95736168,0.000209,13]
[401945911,1768417847940,-3000.0,0.00021,2]
[401945912,1768417847950,-2000.0,0.00021,7]
[401945913,1768417847960,-3000.0,0.0002101,2]
[401945914,1768417847970,-3000.0,0.0002102,2]
[401945915,1768417847979,-3000.0,0.0002103,2]
[401945916,1768417847989,-3000.0,0.0002104,2]
[401945917,1768417847999,-3000.0,0.0002105,2]
[401945918,1768417848009,-3000.0,0.0002106,2]
[401945919,1768417848018,-1000.0,0.0002107,2]
[401945920,1768417848028,-1000.0,0.0002107,2]
[401945921,1768417848037,-3000.0,0.0002107,2]
[401945922,1768417848047,-3000.0,0.0002108,2]
[401945923,1768417848056,-3000.0,0.0002109,2]
[401945924,1768417848066,-3000.0,0.000211,2]
[401945925,1768417848075,-3000.0,0.0002111,2]
[401945926,1768417848085,-3000.0,0.0002112,2]
[401945927,1768417848094,-3000.0,0.0002113,2]
[401945928,1768417848104,-3000.0,0.0002114,2]
[401945929,1768417848114,-3000.0,0.0002115,2]
[401945930,1768417848124,-3000.0,0.0002116,2]
[401945931,1768417848133,-3000.0,0.0002117,2]
[401945932,1768417848142,-3000.0,0.0002118,2]
[401945933,1768417848152,-3000.0,0.0002119,2]
[401945934,1768417848162,-35292.34,0.000212,2]
[401945935,1768417848171,-158.69,0.000212,2]
[401945936,1768417848181,-3000.0,0.000212,2]
[401945937,1768417848191,-3000.0,0.0002121,2]
[401945938,1768417848201,-3000.0,0.0002122,2]
[401945939,1768417848210,-3000.0,0.0002123,2]
[401945940,1768417848220,-151.0,0.0002123,2]
[401945941,1768417848230,-151.0,0.0002123,2]
[401945942,1768417848240,-151.0,0.0002123,2]
[401945943,1768417848250,-3000.0,0.0002124,2]
[401945944,1768417848260,-3000.0,0.0002125,2]
[401945945,1768417848269,-3000.0,0.0002126,2]
[401945946,1768417848279,-3000.0,0.0002127,2]
[401945947,1768417848288,-31110.0,0.00021278,2]
[401945948,1768417848299,-3000.0,0.0002128,2]
[401945949,1768417848311,-3000.0,0.0002129,2]
[401945951,1768417848321,-3000.0,0.000213,2]
[401945953,1768417848331,-3000.0,0.0002131,2]
[401945955,1768417848341,-3000.0,0.0002132,2]
[401945957,1768417848351,-3000.0,0.0002133,2]
[401945958,1768417848361,-3000.0,0.0002134,2]
[401945960,1768417848372,-3000.0,0.0002135,2]
[401945962,1768417848383,-3000.0,0.0002136,2]
[401945964,1768417848393,-550.0,0.0002137,2]
[401945965,1768417848403,-7500.0,0.0002137,2]
[401945966,1768417848414,-3000.0,0.0002137,2]
[401945967,1768417848424,-683.587352,0.0002137,2]
[401945968,1768417848434,-683.587352,0.0002137,2]
[401945969,1768417848444,-683.587352,0.0002137,2]
[401945970,1768417848454,-683.587352,0.0002137,2]
[401945972,1768417848464,-795.987765,0.0002137,2]
[401945974,1768417848477,-795.987765,0.0002137,2]
[401945976,1768417848488,-795.987765,0.0002137,2]
[401945978,1768417848498,-795.987765,0.0002137,2]
[401945980,1768417848508,-3000.0,0.0002138,2]
[401945982,1768417848517,-3000.0,0.0002139,2]
[401945984,1768417848528,-3000.0,0.000214,2]
[401945986,1768417848539,-3000.0,0.0002141,2]
[401945988,1768417848549,-3000.0,0.0002142,2]
[401945990,1768417848558,-4716.661967,0.0002143,2]
[401945992,1768417848568,-1000.0,0.000215,2]
[401945994,1768417848577,-1000.0,0.000215,2]
[401945996,1768417848586,-1000.0,0.000215,2]
[401945998,1768417848596,-1000.0,0.000215,2]
[401946000,1768417848606,-1000.0,0.000215,2]
[401946002,1768417848615,-1000.0,0.000215,2]
[401946004,1768417848625,-1000.0,0.000215,2]
[401946006,1768417848635,-1000.0,0.000215,2]
[401946008,1768417848644,-1000.0,0.000215,2]
[401946010,1768417848654,-1000.0,0.000215,2]
[401946012,1768417848664,-155.5739919,0.00021638,5]
[401946015,1768417848675,-168.28,0.0002174,2]
[401946017,1768417848685,-1096.95736168,0.00021793,15]
[401946019,1768417848696,-32261.07,0.00021826,2]
[401946021,1768417848706,-181.655666,0.00021918,2]
[401946023,1768417848715,-151.0,0.00021918,2]
[401946025,1768417848725,-285.638493,0.00021918,2]
[401946027,1768417848736,-171.177356,0.00021918,2]
[401946029,1768417848746,-341.283719,0.00021918,2]
[401946031,1768417848756,-171.177356,0.00021918,2]
[401946033,1768417848765,-341.283719,0.00021918,2]
[401946035,1768417848775,-171.177356,0.00021918,2]
[401946037,1768417848785,-171.177356,0.00021918,2]
[401946039,1768417848794,-341.283719,0.00021918,2]
[401946041,1768417848804,-341.283719,0.00021918,2]
[401946043,1768417848814,-171.177356,0.00021918,2]
[401946045,1768417848824,-171.177356,0.00021918,2]
[401946047,1768417848833,-341.283719,0.00021918,2]
[401946049,1768417848843,-341.283719,0.00021918,2]
[401946051,1768417848853,-171.177356,0.00021918,2]
[401946053,1768417848862,-171.177356,0.00021918,2]
[401946055,1768417848873,-341.283719,0.00021918,2]
[401946056,1768417848883,-341.283719,0.00021918,2]
[401946058,1768417848893,-677.806969,0.00021918,2]
[401946060,1768417848903,-677.806969,0.00021918,2]
[401946062,1768417848912,-677.806969,0.00021918,2]
[401946064,1768417848922,-677.806969,0.00021918,2]
[401946067,1768417848932,-677.806969,0.00021918,2]
[401946069,1768417848942,-677.806969,0.00021918,2]
[401946071,1768417848951,-677.806969,0.00021918,2]
[401946073,1768417848960,-677.806969,0.00021918,2]
[401946075,1768417848969,-151.0,0.00021918,2]
[401946077,1768417848979,-151.0,0.00021918,2]
[401946079,1768417848989,-240.755518,0.00021918,2]
[401946081,1768417848998,-153.839404,0.00021918,2]
[401946083,1768417849010,-151.0,0.00021918,2]
[401946085,1768417849019,-151.0,0.00021918,2]
[401946087,1768417849029,-151.0,0.00021918,2]
[401946089,1768417849039,-275.55471384,0.00021918,2]
[401946091,1768417849048,-151.0,0.00021918,2]
[401946093,1768417849058,-155.398666,0.00021918,2]
[401946095,1768417849068,-151.0,0.00021918,2]
[401946097,1768417849077,-151.0,0.00021918,2]
[401946099,1768417849088,-151.0,0.00021918,2]
[401946101,1768417849097,-151.0,0.00021918,2]
[401946103,1768417849108,-151.0,0.00021918,2]
[401946104,1768417849120,-151.0,0.00021918,2]
[401946106,1768417849130,-151.0,0.00021918,2]
[401946108,1768417849140,-151.0,0.00021918,2]
[401946111,1768417849151,-151.0,0.00021918,2]
[401946112,1768417849160,-151.0,0.00021918,2]
[401946115,1768417849172,-151.0,0.00021918,2]
[401946117,1768417849182,-151.0,0.00021918,2]
[401946119,1768417849193,-1570.773702,0.00021918,2]
[401946121,1768417849203,-1570.773702,0.00021918,2]
[401946123,1768417849213,-1570.773702,0.00021918,2]
[401946125,1768417849222,-1570.773702,0.00021918,2]
[401946127,1768417849231,-151.0,0.00021918,2]
[401946129,1768417849240,-151.0,0.00021918,2]
[401946131,1768417849250,-1570.773702,0.00021918,2]
[401946133,1768417849259,-1570.773702,0.00021918,2]
[401946135,1768417849268,-151.0,0.00021918,2]
[401946137,1768417849278,-151.0,0.00021918,2]
[401946139,1768417849287,-1570.773702,0.00021918,2]
[401946141,1768417849297,-1570.773702,0.00021918,2]
[401946143,1768417849309,-302.604582,0.00021918,2]
[401946145,1768417849319,-302.604582,0.00021918,2]
[401946146,1768417849329,-302.604582,0.00021918,2]
[401946148,1768417849338,-302.604582,0.00021918,2]
[401946150,1768417849348,-442.400587,0.00021918,2]
[401946152,1768417849359,-442.400587,0.00021918,2]
[401946154,1768417849369,-302.604582,0.00021918,2]
[401946156,1768417849380,-151.0,0.00021918,2]
[401946158,1768417849391,-302.604582,0.00021918,2]
[401946160,1768417849402,-151.0,0.00021918,2]
[401946162,1768417849411,-442.400587,0.00021918,2]
[401946168,1768417849458,-442.400587,0.00021918,2]
[401946170,1768417849467,-302.604582,0.00021918,2]
[401946172,1768417849478,-302.604582,0.00021918,2]
[401946174,1768417849487,-442.400587,0.00021918,2]
[401946176,1768417849498,-442.400587,0.00021918,2]
[401946178,1768417849508,-442.400587,0.00021918,2]
[401946180,1768417849518,-442.400587,0.00021918,2]
[401946182,1768417849529,-171.320259,0.00021918,2]
[401946184,1768417849538,-151.0,0.00021918,2]
[401946186,1768417849549,-151.0,0.00021918,2]
[401946188,1768417849559,-151.0,0.00021918,2]
[401946190,1768417849569,-151.0,0.00021918,2]
[401946192,1768417849579,-240.635546,0.00021918,2]
[401946193,1768417849590,-151.0,0.00021918,2]
[401946195,1768417849600,-225.938304,0.00021918,2]
[401946197,1768417849612,-151.0,0.00021918,2]
[401946199,1768417849624,-151.0,0.00021918,2]
[401946201,1768417849636,-151.0,0.00021918,2]
[401946203,1768417849647,-151.0,0.00021918,2]
[401946205,1768417849659,-151.0,0.00021918,2]
[401946207,1768417849670,-151.0,0.00021918,2]
[401946210,1768417849681,-151.0,0.00021918,2]
[401946212,1768417849692,-151.0,0.00021918,2]
[401946214,1768417849702,-171.590908,0.00021918,2]
[401946216,1768417849713,-151.0,0.00021918,2]
[401946218,1768417849724,-151.0,0.00021918,2]
[401946220,1768417849735,-151.0,0.00021918,2]
[401946222,1768417849745,-151.0,0.00021918,2]
[401946224,1768417849756,-151.0,0.00021918,2]
[401946226,1768417849767,-151.0,0.00021918,2]
[401946227,1768417849778,-151.0,0.00021918,2]
[401946229,1768417849789,-151.0,0.00021918,2]
[401946231,1768417849799,-151.0,0.00021918,2]
[401946233,1768417849810,-151.0,0.00021918,2]
[401946235,1768417849820,-276.465874,0.00021918,2]
[401946237,1768417849830,-151.0,0.00021918,2]
[401946239,1768417849841,-285.163634,0.00021918,2]
[401946242,1768417849852,-650.0,0.00021918,2]
[401946244,1768417849864,-8000.0,0.00021918,2]
[401946246,1768417849875,-1200.0,0.00021918,2]
[401946248,1768417849886,-2145.3,0.00022,7]
[401946250,1768417849897,-2000.0,0.00022,7]
[401946252,1768417849908,-886.2,0.00022039,2]
[401946254,1768417849920,-424.05456317,0.00022199,2]
[401946256,1768417849930,-212.02728157,0.00022199,2]
[401946258,1768417849940,-424.05456317,0.00022332,9]
[401946260,1768417849950,-424.05456317,0.00022466,17]
[401946262,1768417849960,-300.0,0.00022466,2]
[401946264,1768417849970,-200.0,0.00022466,2]
[401946266,1768417849980,-750.0,0.00022466,2]